bitfinex/quotes_BTCUSD_20250616
["timestamp","ask_amount","ask_price","bid_price","bid_amount"]
[1750113781910,0.07007341,107890.0,107880.0,0.20207057]
[1750113782135,0.0185385,107880.0,107870.0,0.4039457]
[1750113782382,0.01853842,107880.0,107870.0,0.50018798]
[1750113782601,0.1190835,107880.0,107870.0,0.45025603]
[1750113782831,0.12651412,107880.0,107870.0,0.21321603]
[1750113783052,0.13578299,107880.0,107870.0,0.21321603]
[1750113783285,0.04336887,107880.0,107870.0,0.45001603]
[1750113783501,0.0341,107880.0,107870.0,0.54298886]
[1750113783729,0.04336887,107880.0,107870.0,0.54298886]
[1750113783972,0.0341,107880.0,107870.0,0.54298886]
[1750113784188,0.03796356,107890.0,107880.0,0.2131988]
[1750113784411,0.00014159,107890.0,107880.0,0.49824738]
[1750113784672,0.00014159,107890.0,107880.0,0.28078857]
[1750113784863,0.00014159,107890.0,107880.0,0.49824738]
[1750113785155,0.00014159,107890.0,107880.0,0.59448914]
[1750113785619,0.00014159,107890.0,107880.0,0.30944056]
[1750113786065,0.00014159,107890.0,107880.0,0.4505188]
[1750113786305,0.00014159,107890.0,107880.0,0.2131988]
[1750113786306,0.07349984,107890.0,107880.0,0.2131988]
[1750113786530,0.10943645,107890.0,107880.0,0.4505188]
[1750113786759,0.11870514,107890.0,107880.0,0.21319897]
[1750113786969,0.30407913,107890.0,107880.0,0.19466064]
[1750113787182,0.30407913,107890.0,107870.0,0.45061517]
[1750113787183,0.03553816,107880.0,107870.0,0.45061517]
[1750113787389,0.017,107880.0,107870.0,0.21321517]
[1750113787599,0.04480729,107880.0,107870.0,0.45077517]
[1750113787830,0.03553799,107880.0,107870.0,0.45077517]
[1750113788037,0.03553799,107880.0,107870.0,0.21321517]
[1750113788038,0.0344,107880.0,107870.0,0.21321517]
[1750113788248,0.0344,107880.0,107870.0,0.45077517]
[1750113788457,0.04366895,107880.0,107870.0,0.45077517]
[1750113788677,0.0344,107880.0,107870.0,0.45077517]
[1750113788888,0.1001687,107890.0,107880.0,0.2131988]
[1750113789116,0.10943645,107890.0,107880.0,0.2131988]
[1750113789330,0.04366895,107880.0,107870.0,0.20594519]
[1750113789537,0.12681377,107880.0,107870.0,0.20594519]
[1750113789747,0.08149092,107880.0,107870.0,0.19667598]
[1750113789961,0.08149092,107880.0,107870.0,0.21521586]
[1750113790174,0.17390512,107880.0,107870.0,0.22448627]
[1750113790386,0.17390512,107880.0,107870.0,0.22248627]
[1750113790596,0.10002925,107880.0,107870.0,0.22248627]
[1750113790808,0.13877998,107880.0,107870.0,0.22248627]
[1750113791011,0.14773626,107880.0,107860.0,0.21320532]
[1750113791240,0.05532197,107880.0,107870.0,0.49826715]
[1750113791471,0.05636013,107880.0,107870.0,0.21321857]
[1750113791697,0.10839898,107880.0,107870.0,0.21521874]
[1750113791908,0.10839881,107880.0,107870.0,0.22448855]
[1750113792123,0.2937905,107880.0,107870.0,0.20594885]
[1750113792341,0.28452129,107880.0,107870.0,0.20594893]
[1750113792571,0.28452129,107880.0,107870.0,0.22448898]
[1750113792816,1.11742199,107880.0,107870.0,0.002]
[1750113793047,6.40430199,107880.0,107870.0,0.002]
[1750113793675,0.04709273,107860.0,107840.0,0.73500556]
[1750113793899,0.06563407,107860.0,107850.0,0.28504858]
[1750113794115,0.08143407,107860.0,107840.0,0.73500565]
[1750113794346,0.01854298,107850.0,107840.0,0.83004941]
[1750113794555,0.24575759,107850.0,107840.0,0.09504376]
[1750113794765,0.24575759,107850.0,107840.0,0.19473285]
[1750113794766,0.06958681,107850.0,107840.0,0.19473285]
[1750113794979,0.06958681,107850.0,107840.0,0.21327832]
[1750113795183,0.24575759,107850.0,107840.0,0.22255088]
[1750113795392,0.24575759,107850.0,107840.0,0.21327832]
[1750113795617,0.00014151,107850.0,107840.0,0.51687185]
[1750113795836,0.00014151,107850.0,107840.0,0.99431141]
[1750113796097,0.00014151,107850.0,107840.0,1.04721141]
[1750113796269,1.049e-05,107850.0,107840.0,0.76216283]
[1750113797387,1.049e-05,107850.0,107840.0,0.72926283]
[1750113798262,1.049e-05,107850.0,107840.0,0.70926283]
[1750113798471,1.049e-05,107850.0,107840.0,0.65873425]
[1750113798702,1.049e-05,107850.0,107840.0,0.94378283]
[1750113799989,0.0092723,107840.0,107830.0,0.22470565]
[1750113800213,0.0092723,107840.0,107830.0,0.03]
[1750113800214,0.20400532,107840.0,107830.0,0.03]
[1750113800433,0.22987823,107840.0,107830.0,0.4580709]
[1750113800654,0.03514486,107840.0,107830.0,0.24329783]
[1750113800875,0.05144486,107840.0,107830.0,0.47649783]
[1750113801094,0.10169338,107840.0,107830.0,0.55289305]
[1750113801954,0.083148,107840.0,107830.0,0.55289305]
[1750113802175,0.28509117,107850.0,107840.0,0.19473276]
[1750113802389,0.28393036,107850.0,107840.0,0.21327814]
[1750113802604,0.09036537,107850.0,107840.0,0.22255053]
[1750113802822,0.118181,107850.0,107840.0,0.31599116]
[1750113803036,0.01854486,107840.0,107830.0,0.47649731]
[1750113803277,0.0092723,107840.0,107830.0,0.57273907]
[1750113803500,0.09036563,107850.0,107840.0,0.21327771]
[1750113803750,0.09963768,107850.0,107840.0,0.22255019]
[1750113803970,0.27580872,107850.0,107830.0,0.32099223]
[1750113804186,0.35887598,107840.0,107830.0,0.23402423]
[1750113804454,0.10881273,107840.0,107830.0,0.23402423]
[1750113804677,0.10881256,107840.0,107830.0,0.24329748]
[1750113804899,0.04709436,107840.0,107830.0,0.3394467]
[1750113805115,0.05636701,107840.0,107830.0,0.62449528]
[1750113805331,0.05636692,107840.0,107830.0,0.3394467]
[1750113805553,0.04709436,107840.0,107830.0,0.3394467]
[1750113805768,0.05442197,107850.0,107840.0,0.21327789]
[1750113805994,0.0328,107860.0,107850.0,0.21325811]
[1750113806219,0.04207067,107860.0,107850.0,0.49830669]
[1750113806447,0.05134314,107850.0,107840.0,0.2914462]
[1750113806665,0.00927144,107850.0,107840.0,0.21374965]
[1750113807096,0.01854306,107850.0,107840.0,0.21374965]
[1750113807301,0.02781485,107850.0,107840.0,0.30926049]
[1750113807532,0.07192197,107860.0,107850.0,0.2039864]
[1750113807764,0.0341,107860.0,107850.0,0.45424955]
[1750113807991,0.10023183,107870.0,107860.0,0.21323851]
[1750113808217,0.10023183,107870.0,107850.0,0.22253006]
[1750113808218,0.15556851,107860.0,107850.0,0.22253006]
[1750113808401,0.16483909,107860.0,107850.0,0.22253006]
[1750113808656,0.1741101,107860.0,107850.0,0.26430349]
[1750113808877,0.09096331,107860.0,107850.0,0.22253006]
[1750113809092,0.08169255,107860.0,107850.0,0.22253006]
[1750113809304,0.07242197,107860.0,107850.0,0.45337006]
[1750113809538,0.03782197,107860.0,107850.0,0.73841864]
[1750113809772,0.05512197,107870.0,107860.0,0.21323834]
[1750113810005,0.12849767,107880.0,107860.0,0.4797448]
[1750113810231,0.05462197,107880.0,107870.0,0.44353857]
[1750113810454,0.09045979,107880.0,107870.0,0.44353857]
[1750113810672,0.36826534,107880.0,107870.0,0.19467869]
[1750113810882,0.09903176,107870.0,107860.0,0.42497674]
[1750113811140,0.11757181,107870.0,107860.0,0.51071882]
[1750113811358,0.11757181,107870.0,107860.0,0.45254927]
[1750113811359,0.1083014,107870.0,107860.0,0.45254927]
[1750113811587,0.1083014,107870.0,107860.0,0.46181994]
[1750113811816,0.07122197,107870.0,107860.0,0.46181994]
[1750113812500,0.03782197,107870.0,107860.0,0.46181994]
[1750113812732,0.03782197,107870.0,107860.0,0.55505107]
[1750113812959,0.05362197,107880.0,107870.0,0.21321857]
[1750113813187,0.03782197,107880.0,107870.0,0.21321857]
[1750113813421,0.0535075,107880.0,107870.0,0.21321857]
[1750113813630,0.0535075,107880.0,107870.0,0.19467869]
[1750113813631,0.34801219,107880.0,107870.0,0.19467869]
[1750113813847,0.36655069,107880.0,107870.0,0.20394876]
[1750113814090,0.19042899,107880.0,107870.0,0.20394876]
[1750113814325,0.18116072,107880.0,107870.0,0.21321874]
[1750113814548,0.08874549,107880.0,107870.0,0.26235304]
[1750113814801,0.08874541,107880.0,107870.0,0.26235304]
[1750113815024,0.0702075,107880.0,107870.0,0.26235304]
[1750113815472,0.08874532,107880.0,107870.0,0.49239304]
[1750113815692,0.07947628,107880.0,107870.0,0.49239304]
[1750113815916,0.09801427,107880.0,107870.0,0.49239304]
[1750113816144,0.09801427,107880.0,107870.0,0.48739304]
[1750113816367,0.17188997,107880.0,107870.0,0.44752855]
[1750113816601,0.17188997,107880.0,107870.0,0.21748855]
[1750113816825,0.10728357,107880.0,107870.0,0.21748855]
[1750113817037,0.09801427,107880.0,107870.0,0.21748855]
[1750113817502,0.08874515,107880.0,107870.0,0.21748855]
[1750113817721,0.09801419,107880.0,107870.0,0.28170302]
[1750113817930,0.08874515,107880.0,107870.0,0.28170302]
[1750113818383,0.0702075,107880.0,107870.0,0.28170302]
[1750113819052,0.07947637,107880.0,107870.0,0.28170302]
[1750113819478,0.0377075,107880.0,107870.0,0.2347673]
[1750113820125,0.0377075,107880.0,107870.0,0.21748855]
[1750113821230,0.0377075,107880.0,107870.0,0.50253713]
[1750113821471,0.0717075,107900.0,107890.0,0.21317904]
[1750113821701,0.0377075,107900.0,107890.0,0.43383043]
[1750113821929,0.0377075,107900.0,107890.0,0.80930603]
[1750113822166,0.0377075,107910.0,107900.0,0.21315928]
[1750113822416,0.0549075,107910.0,107900.0,0.21315928]
[1750113822861,0.07144966,107910.0,107900.0,0.21315928]
[1750113823086,0.08998259,107910.0,107900.0,0.21315928]
[1750113823319,0.08071604,107910.0,107900.0,0.21315928]
[1750113823603,0.07144966,107910.0,107900.0,0.21315928]
[1750113823825,0.08071604,107910.0,107900.0,0.21315928]
[1750113824039,0.07144966,107910.0,107900.0,0.21315928]
[1750113824250,0.0992493,107910.0,107900.0,0.28329486]
[1750113824475,0.03784966,107910.0,107900.0,0.28329486]
[1750113824707,0.04711595,107910.0,107900.0,0.28329486]
[1750113824934,0.25098893,107910.0,107900.0,0.00926784]
[1750113825166,0.0898825,107910.0,107900.0,0.45254695]
[1750113825394,0.08061595,107910.0,107900.0,0.45254695]
[1750113825830,0.08988241,107910.0,107900.0,0.45254695]
[1750113826058,0.04711586,107910.0,107900.0,0.28714585]
[1750113826286,0.06564887,107910.0,107900.0,0.51702585]
[1750113826520,0.06401586,107910.0,107900.0,0.51702585]
[1750113826768,0.03784966,107910.0,107900.0,0.51702585]
[1750113826992,0.03784966,107910.0,107900.0,0.80207443]
[1750113827223,0.03784966,107910.0,107900.0,0.51702585]
[1750113827440,0.0563825,107910.0,107900.0,0.22242695]
[1750113827657,0.04711595,107910.0,107900.0,0.45230695]
[1750113827878,0.05638241,107910.0,107900.0,0.45230695]
[1750113828091,0.03784966,107910.0,107900.0,0.45230695]
[1750113828307,0.03784966,107910.0,107900.0,0.51700185]
[1750113828525,0.05638224,107910.0,107900.0,0.51700185]
[1750113828738,0.05638224,107910.0,107900.0,0.28712185]
[1750113828952,0.05638224,107910.0,107900.0,0.45230695]
[1750113829173,0.03784966,107910.0,107900.0,0.45230695]
[1750113829382,0.06401595,107910.0,107900.0,0.45230695]
[1750113829591,0.07134966,107910.0,107900.0,0.45230695]
[1750113829806,0.07134966,107910.0,107900.0,0.51700185]
[1750113830442,0.03784966,107910.0,107900.0,0.51700185]
[1750113831765,0.03784966,107910.0,107900.0,0.28712185]
[1750113831975,0.03784966,107910.0,107900.0,0.45230695]
[1750113833952,0.03784966,107910.0,107900.0,0.45226695]
[1750113834173,0.04711604,107910.0,107900.0,0.22242695]
[1750113834419,0.03784966,107910.0,107900.0,0.45226695]
[1750113834636,0.04711586,107910.0,107900.0,0.51695785]
[1750113834846,0.03784966,107910.0,107900.0,0.51695785]
[1750113836166,0.00014216,107910.0,107900.0,0.51695785]
[1750113836390,0.00014216,107910.0,107900.0,0.80200643]
[1750113836824,0.00014216,107910.0,107900.0,0.51695785]
[1750113837041,0.00014216,107910.0,107900.0,0.61319961]
[1750113837253,0.00014216,107910.0,107900.0,0.93184819]
[1750113837736,0.00014216,107910.0,107900.0,0.95184819]
[1750113837964,0.00014216,107910.0,107900.0,1.75881154]
[1750113838202,0.0551075,107960.0,107950.0,0.21306055]
[1750113838423,0.0542075,107970.0,107960.0,0.21304081]
[1750113838641,0.0377075,107970.0,107960.0,0.21304081]
[1750113838867,0.0004739,107970.0,107960.0,0.30928257]
[1750113839727,0.38501443,107970.0,107960.0,0.19451639]
[1750113839944,0.09996577,107970.0,107960.0,0.21304081]
[1750113840158,0.29446414,107970.0,107960.0,0.2343477]
[1750113840370,0.10922751,107970.0,107960.0,0.26213429]
[1750113840594,0.27594143,107970.0,107950.0,0.21305969]
[1750113840823,0.27594143,107970.0,107940.0,0.19453824]
[1750113840824,0.24585986,107950.0,107940.0,0.19453824]
[1750113841054,0.09829941,107940.0,107930.0,0.21310004]
[1750113841291,0.09829941,107940.0,107910.0,0.29647879]
[1750113841292,0.00926543,107920.0,107910.0,0.29647879]
[1750113841513,0.20385358,107920.0,107910.0,0.43810752]
[1750113841739,0.07293914,107920.0,107910.0,0.2131397]
[1750113841960,0.26752728,107920.0,107910.0,0.22968]
[1750113842204,0.0890393,107920.0,107910.0,0.44281953]
[1750113842440,0.28362788,107920.0,107910.0,0.42428652]
[1750113842622,0.00926638,107910.0,107900.0,0.22242643]
[1750113842883,0.08903922,107920.0,107910.0,0.21313944]
[1750113843101,0.2836272,107920.0,107910.0,0.18533963]
[1750113843310,0.08903948,107920.0,107910.0,0.21313953]
[1750113843544,0.0705075,107920.0,107910.0,0.44281953]
[1750113843764,0.0377075,107920.0,107910.0,0.44281953]
[1750113843986,0.04697207,107930.0,107920.0,0.21311978]
[1750113844199,0.05623681,107930.0,107920.0,0.21311978]
[1750113844420,0.10916673,107930.0,107920.0,0.20385426]
[1750113844637,0.1184319,107930.0,107920.0,0.21311978]
[1750113845130,0.0721075,107930.0,107920.0,0.21311978]
[1750113845349,0.09063673,107930.0,107920.0,0.29484069]
[1750113845563,0.09063665,107930.0,107920.0,0.27484069]
[1750113846004,0.0721075,107950.0,107930.0,0.01852983]
[1750113846231,0.03784959,107950.0,107940.0,0.4427203]
[1750113847338,0.03784959,107950.0,107940.0,0.2130803]
[1750113847552,0.09106339,107940.0,107930.0,0.19457029]
[1750113847771,0.1178277,107940.0,107930.0,0.22236521]
[1750113847987,0.09106665,107930.0,107920.0,0.17458849]
[1750113848203,0.08077199,107930.0,107920.0,0.45198556]
[1750113848429,0.0715075,107930.0,107920.0,0.45198556]
[1750113848643,0.09930199,107930.0,107920.0,0.43345444]
[1750113848892,0.0900369,107930.0,107920.0,0.45198573]
[1750113849119,0.08077207,107930.0,107920.0,0.51664489]
[1750113849340,0.10856665,107930.0,107920.0,0.22238573]
[1750113849556,0.09930156,107930.0,107920.0,0.45198573]
[1750113849773,0.08107302,107920.0,107910.0,0.42420652]
[1750113849990,0.09033845,107920.0,107910.0,0.44273953]
[1750113850228,0.08107285,107920.0,107910.0,0.44273953]
[1750113850681,0.0377075,107920.0,107910.0,0.4334723]
[1750113850895,0.10906682,107930.0,107920.0,0.21311978]
[1750113851123,0.11833199,107930.0,107920.0,0.21311978]
[1750113851351,0.09980173,107930.0,107920.0,0.21311978]
[1750113851564,0.09980165,107930.0,107920.0,0.21311978]
[1750113851773,0.10906682,107930.0,107920.0,0.21311978]
[1750113851985,0.10906682,107930.0,107920.0,0.22238547]
[1750113852210,0.10906759,107930.0,107920.0,0.21311995]
[1750113852430,0.28510814,107930.0,107920.0,0.20385444]
[1750113852613,0.38485143,107930.0,107920.0,0.2223859]
[1750113852900,0.09980225,107930.0,107920.0,0.2131203]
[1750113853123,0.09980217,107930.0,107920.0,0.23165151]
[1750113853341,0.10906743,107930.0,107920.0,0.22238599]
[1750113853558,0.28510806,107930.0,107920.0,0.22238599]
[1750113853790,0.0720075,107930.0,107920.0,0.23165151]
[1750113854269,0.09053681,107930.0,107920.0,0.22238599]
[1750113854500,0.0720075,107930.0,107920.0,0.23165151]
[1750113855180,0.37558548,107930.0,107920.0,0.23165151]
[1750113855431,0.44183973,107930.0,107920.0,0.23165151]
[1750113855660,0.08127216,107930.0,107920.0,0.23165151]
[1750113855871,0.09003896,107920.0,107910.0,0.20387027]
[1750113856104,0.38435272,107920.0,107910.0,0.2131369]
[1750113856328,0.39361867,107920.0,107910.0,0.2131369]
[1750113856572,0.39361935,107920.0,107910.0,0.20387052]
[1750113856786,0.40288547,107920.0,107910.0,0.21313707]
[1750113856997,0.11783689,107920.0,107910.0,0.21313707]
[1750113857219,0.04697568,107890.0,107880.0,0.19459798]
[1750113857482,0.365524,107890.0,107880.0,0.21313631]
[1750113857711,0.0377075,107880.0,107870.0,0.2039058]
[1750113857942,0.0377075,107880.0,107870.0,0.4333458]
[1750113858163,0.0377075,107880.0,107870.0,0.49521978]
[1750113858594,0.0377075,107880.0,107870.0,0.49536194]
[1750113859251,0.0377075,107880.0,107870.0,0.43348796]
[1750113859908,0.04697628,107880.0,107870.0,0.20404796]
[1750113860125,0.37479381,107880.0,107870.0,0.43348796]
[1750113860401,0.0377075,107880.0,107870.0,0.43348796]
[1750113860619,0.04697628,107880.0,107870.0,0.43348796]
[1750113860839,0.04697628,107880.0,107870.0,0.49537615]
[1750113860840,0.07478365,107880.0,107870.0,0.49537615]
[1750113861050,0.07478365,107880.0,107870.0,0.44275829]
[1750113861051,0.09128331,107880.0,107870.0,0.44275829]
[1750113861287,0.58799244,107880.0,107870.0,0.19482093]
[1750113861500,0.38406362,107880.0,107870.0,0.22263097]
[1750113861950,0.57872434,107880.0,107870.0,0.21336116]
[1750113862602,0.29367576,107880.0,107870.0,0.21336099]
[1750113862853,0.64398361,107880.0,107870.0,0.00014216]
[1750113863087,0.74022537,107880.0,107870.0,0.00014216]
[1750113863314,1.36527395,107880.0,107870.0,0.00014216]
[1750113863541,1.36527395,107880.0,107810.0,0.027912]
[1750113863542,0.20404333,107820.0,107810.0,0.027912]
[1750113863772,0.20404333,107820.0,107810.0,0.22269885]
[1750113863773,0.09793052,107820.0,107810.0,0.22269885]
[1750113863992,0.09793052,107820.0,107810.0,0.26675151]
[1750113863993,0.0377075,107820.0,107810.0,0.26675151]
[1750113864238,0.0377075,107820.0,107810.0,0.49611151]
[1750113864680,0.2510055,107830.0,107820.0,0.19476897]
[1750113864917,0.2510055,107830.0,107810.0,0.47756028]
[1750113864918,0.06553017,107820.0,107810.0,0.46828566]
[1750113865185,0.07480471,107820.0,107810.0,0.44322917]
[1750113865427,0.10750471,107820.0,107810.0,0.45254448]
[1750113865659,0.11677933,107820.0,107810.0,0.44326951]
[1750113865888,0.0982306,107820.0,107810.0,0.45254474]
[1750113866119,0.10750514,107820.0,107810.0,0.46181971]
[1750113866608,0.10750514,107820.0,107810.0,0.23241971]
[1750113866838,0.08895615,107820.0,107810.0,0.23241971]
[1750113867102,0.09823069,107820.0,107810.0,0.23241971]
[1750113867374,0.39255398,107820.0,107810.0,0.22314474]
[1750113867603,0.63337537,107820.0,107810.0,0.00980743]
[1750113867841,0.34832679,107820.0,107810.0,0.00980751]
[1750113868137,0.34832679,107820.0,107810.0,0.019083]
[1750113868372,0.43529401,107820.0,107810.0,0.18604348]
[1750113868599,0.25907412,107820.0,107810.0,0.21386959]
[1750113868827,0.25907361,107820.0,107810.0,0.20459436]
[1750113869047,0.27762192,107820.0,107810.0,0.22314473]
[1750113869279,0.27762192,107820.0,107810.0,0.20459436]
[1750113869517,0.27762269,107820.0,107810.0,0.20459454]
[1750113869747,0.82298045,107820.0,107810.0,0.00053194]
[1750113869955,0.72961713,107820.0,107810.0,0.00053194]
[1750113870635,1.06961713,107820.0,107810.0,0.00053194]
[1750113870858,0.87484782,107820.0,107810.0,0.19531905]
[1750113871104,0.79384258,107820.0,107810.0,0.00980751]
[1750113871353,1.15649173,107820.0,107810.0,0.00053194]
[1750113871595,6.20649173,107820.0,107810.0,0.00053194]
[1750113871845,5.92144315,107820.0,107810.0,0.00053194]
[1750113872099,6.20649173,107820.0,107810.0,0.00053194]
[1750113872317,6.22103258,107820.0,107810.0,0.00053194]
[1750113872536,6.24516647,107820.0,107810.0,0.00053194]
[1750113872786,6.22103258,107820.0,107810.0,0.00053194]
[1750113873011,5.61698387,107810.0,107800.0,0.0001]
[1750113873235,5.96726986,107810.0,107800.0,0.0001]
[1750113873520,6.64275188,107810.0,107800.0,0.0001]
[1750113873765,6.4496233,107810.0,107800.0,0.0001]
[1750113874003,0.54934586,107800.0,107790.0,0.00913175]
[1750113874239,1.41140142,107800.0,107790.0,0.00913175]
[1750113874510,6.46140142,107800.0,107790.0,0.00913175]
[1750113874754,6.46140142,107800.0,107760.0,0.20607122]
[1750113874755,0.04698591,107770.0,107760.0,0.20607122]
[1750113874989,0.15124926,107770.0,107760.0,0.20897248]
[1750113875231,0.51356994,107770.0,107760.0,0.22753163]
[1750113875473,0.72177288,107770.0,107760.0,0.00490126]
[1750113875712,0.86165163,107770.0,107760.0,0.20905838]
[1750113875942,0.99683566,107770.0,107760.0,0.00490126]
[1750113876181,1.14613125,107770.0,107760.0,0.00504277]
[1750113876413,1.02309814,107770.0,107760.0,0.00504277]
[1750113876671,0.99683566,107770.0,107760.0,0.20919997]
[1750113877136,0.98755708,107770.0,107760.0,0.01432265]
[1750113877392,0.01855855,107760.0,107740.0,0.20410204]
[1750113877640,0.20423308,107720.0,107710.0,0.01856811]
[1750113877903,0.05627337,107720.0,107710.0,0.15838821]
[1750113878143,0.05627337,107720.0,107700.0,0.20642769]
[1750113878144,0.0377075,107710.0,107700.0,0.20642769]
[1750113878388,0.0377075,107710.0,107700.0,0.21571196]
[1750113879112,0.0377075,107710.0,107700.0,0.28182529]
[1750113879113,0.03784923,107710.0,107700.0,0.28182529]
[1750113879601,0.04713264,107710.0,107700.0,0.28182529]
[1750113879836,0.04713264,107710.0,107700.0,0.21571196]
[1750113880092,0.04713264,107710.0,107680.0,0.002]
[1750113880093,0.42701957,107690.0,107680.0,0.002]
[1750113880332,6.34647675,107690.0,107680.0,0.002]
[1750113880567,6.4859911,107690.0,107680.0,0.002]
[1750113880783,6.4859911,107690.0,107630.0,0.0164752]
[1750113880784,0.06319729,107640.0,107630.0,0.0164752]
[1750113881018,0.04699694,107640.0,107630.0,0.23946012]
[1750113881489,0.1432387,107640.0,107630.0,0.23946012]
[1750113881725,0.13394926,107640.0,107630.0,0.23946012]
[1750113881971,0.15252823,107640.0,107630.0,0.23446012]
[1750113882206,0.09088906,107630.0,107620.0,0.00913175]
[1750113882444,0.2800492,107630.0,107620.0,0.00913175]
[1750113882935,0.74913805,107630.0,107620.0,0.00913175]
[1750113883192,0.37295261,107630.0,107620.0,0.00913175]
[1750113883727,0.36366196,107630.0,107620.0,0.00913175]
[1750113883961,0.17784017,107630.0,107620.0,0.00913175]
[1750113884191,0.83968231,107630.0,107620.0,0.00913175]
[1750113884428,0.45691478,107630.0,107620.0,0.00913175]
[1750113884666,0.45691478,107630.0,107610.0,0.00097828]
[1750113884667,0.60703834,107620.0,107610.0,0.00097828]
[1750113884900,6.18836895,107620.0,107610.0,0.00097828]
[1750113885133,6.2200098,107620.0,107610.0,0.00097828]
[1750113885595,0.54127358,107620.0,107610.0,0.00097828]
[1750113885828,1.1700098,107620.0,107610.0,0.00097828]
[1750113886064,0.71782095,107620.0,107610.0,0.00097828]
[1750113886294,1.17930175,107620.0,107610.0,0.00097828]
[1750113886524,0.7271129,107620.0,107610.0,0.00097828]
[1750113886762,1.17930175,107620.0,107610.0,0.00097828]
[1750113886986,0.80872127,107620.0,107610.0,0.00097828]
[1750113887252,0.50963299,107620.0,107610.0,0.00097828]
[1750113887478,0.52613256,107620.0,107610.0,0.19612725]
[1750113887705,0.15104926,107620.0,107610.0,0.21471193]
[1750113888160,0.16034043,107620.0,107610.0,0.21471193]
[1750113888389,0.13394926,107620.0,107610.0,0.20444101]
[1750113888615,0.0377075,107620.0,107610.0,0.2370483]
[1750113888831,0.0094311,107640.0,107630.0,0.19511279]
[1750113889042,0.01858432,107610.0,107600.0,0.19597067]
[1750113889269,0.04699928,107620.0,107610.0,0.21373416]
[1750113889270,0.0562901,107620.0,107610.0,0.21373416]
[1750113889492,0.04699953,107610.0,107600.0,0.21455707]
[1750113889711,0.04699953,107610.0,107600.0,0.20526426]
[1750113889918,0.0377075,107610.0,107600.0,0.22385066]
[1750113890322,0.04699962,107610.0,107600.0,0.26575367]
[1750113890536,0.52598085,107610.0,107600.0,0.22385359]
[1750113890746,0.04699962,107610.0,107600.0,0.22385359]
[1750113891030,0.06558473,107610.0,107600.0,0.22385359]
[1750113891212,0.35589061,107610.0,107600.0,0.0101]
[1750113891664,0.17003428,107610.0,107600.0,0.0101]
[1750113891889,0.17932701,107610.0,107600.0,0.21456061]
[1750113892111,0.17932701,107610.0,107600.0,0.01939359]
[1750113892112,0.36518377,107610.0,107600.0,0.01939359]
[1750113892327,0.35589113,107610.0,107600.0,0.0101]
[1750113892532,0.35589113,107610.0,107600.0,0.01939368]
[1750113892745,0.63802813,107620.0,107610.0,0.02787714]
[1750113892746,0.00929143,107620.0,107610.0,0.02787714]
[1750113892945,0.01858468,107610.0,107600.0,0.21455966]
[1750113893487,0.00929221,107610.0,107600.0,0.21455966]
[1750113893649,0.15253299,107620.0,107610.0,0.21373364]
[1750113893860,0.15253256,107620.0,107610.0,0.20444152]
[1750113894061,0.00929221,107610.0,107600.0,0.21456018]
[1750113894264,0.16182451,107620.0,107600.0,0.25019216]
[1750113894472,0.04699867,107620.0,107610.0,0.20444144]
[1750113894666,0.07487347,107620.0,107610.0,0.2121949]
[1750113894886,0.25142136,107620.0,107610.0,0.2121949]
[1750113895116,0.0655823,107620.0,107610.0,0.23077966]
[1750113895269,0.06558222,107620.0,107610.0,0.24007187]
[1750113895462,0.06558222,107620.0,107610.0,0.2121949]
[1750113895463,0.26071323,107620.0,107610.0,0.2121949]
[1750113895719,0.06558222,107620.0,107610.0,0.27252572]
[1750113895913,0.05629044,107620.0,107610.0,0.23077958]
[1750113896153,0.07487408,107620.0,107610.0,0.23077975]
[1750113896336,0.07487408,107620.0,107610.0,0.22148737]
[1750113896548,0.06558213,107620.0,107610.0,0.23077975]
[1750113896752,0.07487408,107620.0,107610.0,0.2121949]
[1750113896919,0.06558213,107620.0,107610.0,0.23077958]
[1750113897331,0.0377075,107620.0,107610.0,0.23077958]
[1750113897548,0.0553075,107610.0,107570.0,0.08532035]
[1750113897719,0.01858865,107590.0,107580.0,0.00929523]
[1750113897915,0.0092948,107580.0,107570.0,0.08391159]
[1750113898146,0.00929532,107580.0,107560.0,0.20260169]
[1750113898372,0.00929532,107580.0,107550.0,0.231343]
[1750113898373,0.02788983,107560.0,107550.0,0.2231403]
[1750113898590,0.02788983,107560.0,107550.0,0.02789295]
[1750113898591,0.01859279,107560.0,107550.0,0.02789295]
[1750113898840,0.02788811,107570.0,107560.0,0.00929713]
[1750113899091,0.05629977,107570.0,107560.0,0.00929696]
[1750113899312,0.00929722,107550.0,107530.0,0.1859426]
[1750113899548,0.00929722,107550.0,107540.0,0.02789554]
[1750113899549,0.0377075,107550.0,107540.0,0.02789554]
[1750113899787,0.0377075,107560.0,107550.0,0.20455505]
[1750113900051,0.04335155,107560.0,107550.0,0.21385296]
[1750113900280,0.0377075,107560.0,107550.0,0.21385296]
[1750113900931,0.00014141,107570.0,107560.0,0.21383309]
[1750113901158,0.00014141,107570.0,107560.0,0.34697485]
[1750113901606,0.00014141,107570.0,107560.0,0.51118941]
[1750113901819,0.03784891,107570.0,107560.0,0.23073309]
[1750113902027,0.00014141,107570.0,107560.0,0.23073309]
[1750113902230,0.043822,107620.0,107610.0,0.21373374]
[1750113902435,0.09624176,107620.0,107610.0,0.16622388]
[1750113902665,0.11214176,107620.0,107610.0,0.18840129]
[1750113902899,0.09624176,107620.0,107610.0,0.18840129]
[1750113903120,0.0159,107650.0,107640.0,0.21367417]
[1750113903350,0.027918,107650.0,107640.0,0.21367417]
[1750113903586,0.11228407,107650.0,107640.0,0.20438455]
[1750113903837,0.11228407,107650.0,107640.0,0.00929022]
[1750113904069,0.02533089,107650.0,107620.0,0.21371352]
[1750113904295,0.14015041,107650.0,107620.0,0.24184592]
[1750113904512,0.14015041,107650.0,107630.0,0.0185814]
[1750113904513,0.00928944,107640.0,107630.0,0.0185814]
[1750113904726,0.00929048,107630.0,107610.0,0.16981609]
[1750113904941,0.09638407,107650.0,107630.0,0.00929091]
[1750113905153,0.09638407,107650.0,107640.0,0.21367417]
[1750113905357,0.00014231,107650.0,107640.0,0.70674068]
[1750113905568,0.00014231,107650.0,107640.0,0.36809359]
[1750113905768,0.00014231,107650.0,107640.0,0.32292395]
[1750113905976,0.00943098,107650.0,107640.0,0.13711942]
[1750113906191,0.20450786,107650.0,107640.0,0.09624176]
[1750113906484,0.20440369,107630.0,107620.0,0.07433908]
[1750113906635,0.18582238,107630.0,107620.0,0.17058084]
[1750113906836,0.18582238,107630.0,107590.0,0.46016609]
[1750113907041,0.00014231,107650.0,107630.0,0.009291]
[1750113907248,0.09638407,107650.0,107640.0,0.28801316]
[1750113907692,0.01857561,107660.0,107650.0,0.20435458]
[1750113907911,0.18575403,107670.0,107640.0,0.0836287]
[1750113908119,0.0179,107670.0,107640.0,0.26061521]
[1750113908348,0.01857622,107660.0,107650.0,0.01857846]
[1750113908554,0.00928772,107660.0,107650.0,0.22294349]
[1750113908781,0.00928634,107680.0,107640.0,0.44936961]
[1750113908998,0.01857432,107670.0,107640.0,0.23569597]
[1750113909221,0.0169,107670.0,107650.0,0.00928919]
[1750113909439,0.11314176,107670.0,107650.0,0.00928927]
[1750113909669,0.09624176,107670.0,107660.0,0.21363446]
[1750113909898,0.24697401,107710.0,107700.0,0.01856966]